[Event "Romanian-ch Youth Girls U16 2024"]
[Site "Eforie Nord"]
[Date "2024.04.19"]
[Round "9.1"]
[White "Maria, Lia-Alexandra"]
[Black "Stoenescu, Ioana-Teodora"]
[Result "1-0"]
[ECO "B22"]
[WhiteElo "1924"]
[BlackElo "1651"]
[Annotator "TA"]
[PlyCount "65"]
[EventDate "2024.04.10"]
[EventType "swiss"]
[EventCountry "ROU"]
[SourceTitle "playchess.com"]
[Source "ChessBase"]
[SourceQuality "1"]
[TimeControl "5400+30"]

{[%evp 18,65,34,25,47,0,44,17,27,14,19,3,6,4,2,4,10,8,11,16,4,0,4,0,31,4,16,16,31,0,123,14,380,390,371,183,197,200,187,157,202,187,220,183,231,231,254,227,249,245]} 1. e4 {[%emt 0:00:04]} e6 {[%emt 0:00:17]} 2. d4 {[%emt 0:00:05]} d5 {[%emt 0:00:10]} 3. Nd2 {[%emt 0:00:06][%cal Bb1d2,Bd2b3,Bb3d4][%mdl 32]} c5 {[%emt 0:02:22]} 4. exd5 {[%emt 0:00:19]} Qxd5 {[%emt 0:05:19]} 5. Ngf3 {[%emt 0:05:07]} Nf6 {[%emt 0:02:31]} 6. Bc4 {[%emt 0:10:04]} Qd8 {[%emt 0:02:27]} 7. O-O {[%emt 0:01:33]} cxd4 {[%emt 0:04:51]} 8. Nb3 {[%emt 0:01:29]} Be7 {[%emt 0:01:22]} 9. Nbxd4 {[%emt 0:00:58]} O-O {[%emt 0:01:24]} 10. c3 {[%emt 0:00:43]} a6 {[%emt 0:01:54]} 11. a4 {[%emt 0:00:38]} (11. Bf4 $14) 11... Bd7 {[%emt 0:03:56][%cal Bc8d7,Bd7c6,Bc6d5][%mdl 32]} 12. Qe2 {[%emt 0:10:21]} Nc6 {[%emt 0:07:39] The position is equal.} 13. Bg5 {[%emt 0:04:14]} Qc7 {[%emt 0:11:17]} 14. Bd3 {[%emt 0:01:51]} h6 {[%emt 0:06:28] Hoping for ...Nxd4.} 15. Bh4 {[%emt 0:03:02]} Nxd4 {[%emt 0:06:24]} 16. Nxd4 {[%emt 0:02:15]} Bc6 {[%emt 0:04:02]} 17. Rfe1 {[%emt 0:05:20]} (17. Nxc6 {simplifies} Qxc6 18. Bg3 Bd6 19. Bxd6 Qxd6 20. Qc2) 17... Rfe8 {[%emt 0:02:42]} 18. Bc2 {[%emt 0:01:27] next Qd3 is good for White.} Bd5 {[%emt 0:05:42]} 19. Qd3 {[%emt 0:04:12] Bxf6 is the strong threat.} Bc4 {[%emt 0:07:02]} 20. Qh3 {[%emt 0:00:37]} (20. Qe3 {with more complications.} Bd5 21. b3 Ng4 22. Qh3) 20... Nh7 {[%emt 0:07:43]} 21. b3 {[%emt 0:02:39]} Bxh4 {[%emt 0:02:57]} 22. Qxh4 {[%emt 0:02:30]} Bd5 {[%emt 0:00:29]} 23. Re3 {[%emt 0:01:03]} e5 {[%emt 0:02:33]} (23... Rad8 $11 {remains equal.}) 24. Nf5 $40 {[%emt 0:01:28][%mdl 128] White mounts an attack.} (24. Rae1 $16) 24... Qd8 $2 {[%emt 0:04:07][%mdl 8192] [#] Loses the game.} (24... Be6 $1 $11 {and Black stays safe.}) 25. Nxh6+ $1 $18 {[%emt 0:02:16][%mdl 512]} Kf8 {[%emt 0:03:59]} (25... gxh6 $2 26. Qxh6 Ng5 27. Rg3 $18) 26. Qb4+ {[%emt 0:02:48]} (26. Qh3 $142 Ng5 27. Qh5) 26... Qe7 {[%emt 0:01:02]} 27. Qxe7+ {[%emt 0:01:09]} ({Don't play} 27. Rxe5 $6 Qxb4 28. Rxe8+ Rxe8 $11) 27... Rxe7 {[%emt 0:00:14]} 28. Ng4 {[%emt 0:01:24]} Nf6 {[%emt 0:01:35]} 29. Nxe5 {[%emt 0:03:50]} ({Don't do} 29. Rxe5 $6 Bxb3 30. Rxe7 (30. Bxb3 Nxg4 31. Rxe7 Kxe7 $16) 30... Kxe7 31. Bxb3 Nxg4 32. Re1+ Kf8) 29... Rc8 {[%emt 0:01:19]} 30. Rae1 {[%emt 0:00:27][%cal Oe5g6] Black must now prevent Ng6+!} Rec7 {[%emt 0:00:39]} (30... Be6 {keeps fighting.} 31. h3 Nd5) 31. c4 {[%emt 0:04:52]} Be6 {[%emt 0:00:22]} 32. Bd3 {[%emt 0:01:26]} Rb8 {[%emt 0:00:59]} 33. f4 {[%emt 0:07:29] Weighted Error Value: White=0.24 (precise) /Black=0.43.  Loses game:     	---       	Black=1      Mistake:       	White=3     	Black=2      Inaccurate:     	White=3     	Black=2      OK:         	White=6     	Black=7      Best:        	---       	Black=3      Brilliant:      	White=1     	---} 1-0

[Event "Romanian-ch Youth Girls U16 2024"]
[Site "Eforie Nord"]
[Date "2024.04.19"]
[Round "9.2"]
[White "Rusu, Anastasia"]
[Black "Stan, Oana-Bianca"]
[Result "1-0"]
[ECO "C53"]
[WhiteElo "1590"]
[BlackElo "1623"]
[Annotator "NA RC COMBH"]
[PlyCount "75"]
[EventDate "2024.04.10"]
[EventType "swiss"]
[EventCountry "ROU"]
[SourceTitle "playchess.com"]
[Source "ChessBase"]
[SourceQuality "1"]
[TimeControl "5400+30"]

1. e4 {[%emt 0:00:03]} e5 {[%emt 0:00:05]} 2. Nf3 {[%emt 0:00:06]} Nc6 {[%emt 0:00:05]} 3. Bc4 {[%emt 0:00:06]} Bc5 {[%emt 0:00:04]} 4. c3 {[%emt 0:00:10]} Qe7 {[%emt 0:00:04]} 5. O-O {[%emt 0:00:11]} Nf6 {[%emt 0:01:02]} 6. d3 {[%emt 0:03:29]} h6 {[%emt 0:07:01]} 7. a4 {[%emt 0:02:18]} a5 {[%emt 0:08:23]} 8. h3 {[%emt 0:01:47]} d6 {[%emt 0:03:57]} 9. Re1 {[%emt 0:02:22]} O-O {[%emt 0:03:14]} 10. Nbd2 {[%emt 0:03:17]} Bb6 {[%emt 0:06:32]} 11. Nf1 {[%emt 0:01:45]} Be6 {[%emt 1:05:33]} 12. Ba2 {[%emt 0:07:20]} Qd7 {[%emt 0:00:00]} 13. Be3 {[%emt 0:07:01]} Bxe3 {[%emt 0:00:00]} 14. Nxe3 {[%emt 0:01:13]} Bxa2 {[%emt 0:00:00]} 15. Rxa2 {[%emt 0:00:16]} Qe6 {[%emt 0:00:00]} 16. Ra1 {[%emt 0:00:41]} Ne7 {[%emt 0:00:00]} 17. Nh4 {[%emt 0:03:46]} Nh7 {[%emt 0:00:00]} 18. Nhf5 {[%emt 0:04:17]} Nxf5 {[%emt 0:00:00]} 19. Nxf5 {[%emt 0:00:21]} Qf6 {[%emt 0:00:00]} 20. Rf1 {[%emt 0:03:31]} Ng5 {[%emt 0:00:00]} 21. f4 {[%emt 0:03:43]} exf4 {[%emt 0:00:00]} 22. Rxf4 {[%emt 0:00:14]} Ne6 {[%emt 0:00:00]} 23. Rf3 {[%emt 0:04:42]} Qe5 {[%emt 0:00:00]} 24. Qe1 {[%emt 0:06:57]} Ng5 {[%emt 0:00:00]} 25. Rg3 {[%emt 0:02:25]} Qf6 {[%emt 0:00:00]} 26. h4 {[%emt 0:03:52]} Ne6 {[%emt 0:00:45]} 27. Qe3 {[%emt 0:03:31]} Kh7 {[%emt 0:00:59]} 28. Rf1 {[%emt 0:00:47]} Qd8 {[%emt 0:00:58]} 29. e5 {[%emt 0:03:50]} d5 {[%emt 0:00:54]} 30. d4 {[%emt 0:00:33]} Qd7 {[%emt 0:03:03]} 31. Qd3 {[%emt 0:00:55]} Kh8 {[%emt 0:00:28]} 32. Nxh6 {[%emt 0:01:53]} g6 {[%emt 0:01:06]} 33. Ng4 {[%emt 0:01:25]} Kg7 {[%emt 0:01:01]} 34. Nf6 {[%emt 0:00:29]} Qxa4 {[%emt 0:00:51]} 35. h5 {[%emt 0:00:43]} Rh8 {[%emt 0:00:57]} 36. hxg6 {[%emt 0:00:45]} Kf8 {[%emt 0:00:14]} 37. gxf7 {[%emt 0:03:48]} Ng7 {[%emt 0:00:35]} 38. Qg6 {[%emt 0:01:41]} 1-0